Cogmind - Beta 15 @@@ ROGUE MODE // 2025.07.29 @ 12:59:06 Player: FenRhew Result: Destroyed by BU-KSM(B) with Slug Cannon Performance ------------- Evolutions (6) 3000 Regions Visited (16) 3200 Robots Destroyed (293) 1465 Value Destroyed (11122) 11122 Prototype IDs (20) 400 Alien Tech Used (1) 200 Bonus (5424) 5424 TOTAL SCORE: 24811 Bonus ------- High Alert Combat Kills 1445 Follower Combat Kills 1666 Entered Garrisons 400 Used RIF Installer 1500 Entered DSFs 500 Friendly Fire -87 Cogmind --------- Core Integrity 0/1150 Matter 300/300 Energy 99/100 System Corruption 0% Temperature Warning (377) Movement Core (100) Ox1 Location -4/Warlord Parts ------- > --- POWER (2) -------- (None) > --- PROPULSION (6) --- Centrium Wheel > --- UTILITY (8) ------ Advanced Heat Sink Advanced Signal Interpreter Advanced Terrain Scan Processor Armor Integrity Analyzer Makeshift Utility Shielding > --- WEAPON (3) ------- Chainsword > --- INVENTORY (5) ---- Autogun Remote Datajack Dirty Bomb Trap Dirty Bomb Trap Peak State ------------ > --- POWER ------------ Angular Momentum Engine Neutrino Core > --- PROPULSION ------- Advanced Medium Treads Advanced Medium Treads Advanced Medium Treads Advanced Medium Treads Improved Heavy Treads > --- UTILITY ---------- Advanced Cryofiber Web Advanced Heat Sink High-capacity Storage Unit Advanced Terrain Scan Processor Improved Target Analyzer Armor Integrity Analyzer Advanced Particle Charger Hardened Medium Armor Plating > --- WEAPON ----------- Variable Charge Gun Advanced Plasma Cannon Advanced Plasma Cannon > --- INVENTORY -------- Neutrino Core Light Quantum Reactor Light Quantum Reactor Improved Heavy Treads Improved Heavy Treads Advanced Heat Sink Improved Weapon Cycler Layered Medium Armor Plating Mini Drone Bay Cooled Pulse Rifle Variable Charge Gun Advanced Plasma Cannon Advanced Plasma Cannon Long-range Missile Launcher Precision Rocket Launcher Advanced Datajack Shock Maul [Rating: 119] Favorites ----------- Power Reinforced Deuterium Engine Engine Reinforced Deuterium Engine Power Core Light Nuclear Core Propulsion Improved Heavy Treads Treads Improved Heavy Treads Leg Aluminum Leg Wheel Centrium Wheel Utility High-capacity Storage Unit Device Advanced Heat Sink Storage High-capacity Storage Unit Processor Advanced Terrain Scan Processor Hackware Relay Coupler [NC] Protection Improved Light Armor Plating Weapon Gauss Rifle Energy Gun Heavy Particle Gun Energy Cannon Heavy Phase Cannon Ballistic Gun Gauss Rifle Ballistic Cannon Bore Cannon Launcher Improved Grenade Launcher Special Weapon Remote Datajack Impact Weapon Flail Slashing Weapon Katana Build | -11 -10 -9 -8 -8 -8 -7 -7 -7 -6 -6 -5 -5 -4 -4 -4 -4 ------- Run | Yrd Mat Mat Mat Gar Mat Fac Gar Fac Fac Ext Fac DSF Fac Upp Upp War Slots Evolved 12 | . . 2 2 . . 2 . . 2 . 2 . 2 . . . Power 1 | . . . . . . . . . 1 . . . . . . . Propulsion 4 | . . . 1 . . 1 . . . . . . 2 . . . Utility 6 | . . 2 1 . . 1 . . . . 2 . . . . . Weapon 1 | . . . . . . . . . 1 . . . . . . . Parts Attached 203 | 8 3 26 9 11 17 9 22 11 11 17 2 4 23 22 8 . Power 26 | 2 1 3 2 1 3 1 4 2 1 2 . . 2 2 . . Engine 17 | 2 1 3 1 1 2 . 2 2 . 1 . . 1 1 . . Core 9 | . . . 1 . 1 1 2 . 1 1 . . 1 1 . . Reactor . | . . . . . . . . . . . . . . . . . Propulsion 50 | 2 . 6 2 5 4 3 9 2 . 2 . . 8 7 . . Treads 36 | 2 . 6 2 5 4 2 2 2 . 2 . . 6 3 . . Leg 9 | . . . . . . 1 6 . . . . . . 2 . . Wheel 5 | . . . . . . . 1 . . . . . 2 2 . . Hover . | . . . . . . . . . . . . . . . . . Flight . | . . . . . . . . . . . . . . . . . Utility 67 | 1 2 8 2 3 5 4 6 2 4 10 2 1 7 6 4 . Device 24 | . 1 1 1 . 1 3 2 . . 2 1 . 5 4 3 . Storage 5 | 1 1 . 1 . . . 1 . . 1 . . . . . . Processor 10 | . . 2 . . . 1 1 1 1 1 1 . 1 1 . . Hackware 4 | . . . . 2 . . . 1 1 . . . . . . . Protection 24 | . . 5 . 1 4 . 2 . 2 6 . 1 1 1 1 . Artifact . | . . . . . . . . . . . . . . . . . Weapon 60 | 3 . 9 3 2 5 1 3 5 6 3 . 3 6 7 4 . Energy Gun 22 | 2 . 2 2 2 1 . 3 1 . . . 2 3 2 2 . Energy Cannon 7 | . . 1 . . . . . . . 1 . . 3 2 . . Ballistic Gun 17 | 1 . 4 . . 2 1 . 3 4 . . . . 1 1 . Ballistic Cannon 2 | . . . . . . . . . . 1 . 1 . . . . Launcher 7 | . . 2 1 . 1 . . 1 1 1 . . . . . . Special Weapon 1 | . . . . . . . . . . . . . . 1 . . Impact Weapon 2 | . . . . . . . . . 1 . . . . 1 . . Slashing Weapon 2 | . . . . . 1 . . . . . . . . . 1 . Piercing Weapon . | . . . . . . . . . . . . . . . . . Special Melee Weapon . | . . . . . . . . . . . . . . . . . Unidentified Prototypes 14 | . . 1 2 . 2 1 1 2 2 2 . . . . 1 . Parts Lost 82 | . 1 4 . 7 3 4 14 . 3 5 . 1 22 1 15 2 Power 9 | . 1 1 . 1 . . 2 . . . . . 2 . 2 . Propulsion 26 | . . 1 . 2 2 3 4 . . 1 . . 8 . 5 . Utility 29 | . . 1 . 3 1 1 4 . 2 3 . . 8 1 5 . Weapon 18 | . . 1 . 1 . . 4 . 1 1 . 1 4 . 3 2 Highest Loss Streak 15 | . 1 1 . 2 1 2 5 . 3 1 . 1 15 1 8 2 To Critical Strikes . | . . . . . . . . . . . . . . . . . Average Backups 15 | 2 7 14 15 19 18 18 19 19 17 18 15 16 17 3 2 2 Power 1 | . . 1 1 1 1 3 3 3 2 2 2 2 3 . . . Propulsion 2 | 1 4 3 3 2 2 1 2 3 3 3 4 4 2 . . . Utility 4 | . . 4 5 9 9 8 7 4 4 4 2 2 4 . . . Weapon 5 | . 1 4 4 5 5 5 6 8 7 8 7 6 6 2 1 1 Tool/Special . | . . . . . . . . . . . . . . . . . Unused Backups 43 | . 3 5 1 1 3 1 2 5 5 6 . 2 8 1 . . Power 8 | . . . . 1 . . . 1 . 1 . . 5 . . . Propulsion 6 | . 3 . . . . . 1 . 1 1 . . . . . . Utility 13 | . . 2 . . 3 . 1 1 3 1 . 1 1 . . . Weapon 13 | . . 3 . . . 1 . 3 1 3 . 1 1 . . . Tool/Special 3 | . . . 1 . . . . . . . . . 1 1 . . Average Slot Usage (%) 88 | . 91 96 97 99 99 98 84 83 85 83 85 86 85 77 76 45 Engine 7 | . 14 11 8 9 6 . 2 5 6 9 5 5 4 4 3 . Core 3 | . . . . . 2 7 4 1 6 3 5 5 4 4 3 . Treads 17 | . 28 22 26 27 26 27 10 14 13 13 11 11 22 5 5 . Leg 1 | . . . . . . 1 10 . . . . . . . 1 . Wheel 1 | . . . . . . . . 1 . . . . . 9 8 5 Device 9 | . 6 8 9 9 7 14 9 15 10 7 9 11 10 13 10 5 Storage 6 | . 14 11 9 9 9 7 7 7 6 6 5 5 4 . . . Processor 11 | . . 11 9 9 9 7 14 14 8 9 15 17 15 20 19 15 Hackware 3 | . . . . 8 9 7 3 6 6 4 . . . . . . Protection 6 | . . 9 16 9 9 6 4 . 5 8 11 9 4 . 5 5 Energy Gun 7 | . 23 2 17 17 9 . 11 1 . . . 12 13 3 8 4 Ballistic Gun 9 | . 4 14 . . 8 15 1 12 18 18 11 1 . 3 3 3 Peak Build Rating 119 | 6 8 23 32 39 34 40 68 64 77 83 86 91 119 82 82 45 Average Rating 56 | 5 6 14 28 33 30 36 53 55 70 77 85 88 108 68 67 43 On Entrance 45 | . 6 8 23 32 31 29 36 64 58 75 82 86 91 22 82 45 Naked Turns . | . . . . . . . . . . . . . . . . . Heaviest Build 161 | 13 30 41 61 63 63 60 161 151 84 98 99 104 109 54 57 13 Greatest Support 210 | 40 40 43 63 73 60 80 162 150 150 150 150 150 210 26 26 16 Greatest Overweight (x) 4 | . . 1 . 1 1 1 4 3 . . . . . 2 2 3 Average Overweight (x) . | . . . . . . . . . . . . . . 1 . . Largest Inventory Capacity 30 | 8 15 15 20 20 20 20 30 30 20 20 20 20 20 5 5 5 Average Capacity 17 | 7 9 15 16 20 20 20 25 21 20 20 20 20 19 5 5 5 Most Carried 30 | 7 11 15 20 20 20 20 30 30 20 20 20 20 20 5 5 4 Average Carried 16 | 3 7 14 15 19 19 19 21 20 19 19 18 18 19 4 4 4 Final Capacity 30 | 8 15 15 20 20 20 20 30 20 20 20 20 20 5 5 5 5 Final Carried 30 | 6 11 15 19 19 20 20 30 20 20 20 18 20 4 5 4 4 Class Distribution -------------------- 28% | Scavenger-Tank 27% | Scavenger-Mutant 18% | Mutant 9% | Commander-Tank 4% | Derelict-Mutant 3% | Hauler-Mutant 3% | Derelict-Gunner Dominant Class ---------------- Mutant | -10/Materials Mutant | -9/Materials Scavenger-Mutant | -8/Materials Mutant | -8/Garrison Scavenger-Mutant | -8/Materials Scavenger-Mutant | -7/Factory Scavenger-Mutant | -7/Garrison Scavenger-Mutant | -7/Factory Scavenger-Tank | -6/Factory Scavenger-Tank | -6/Extension Scavenger-Tank | -5/Factory Scavenger-Tank | -5/DSF Scavenger-Tank | -4/Factory Derelict-Gunner | -4/Upper Caves Derelict-Mutant | -4/Upper Caves Derelict-Mutant | -4/Warlord Resources | -11 -10 -9 -8 -8 -8 -7 -7 -7 -6 -6 -5 -5 -4 -4 -4 -4 ----------- Run | Yrd Mat Mat Mat Gar Mat Fac Gar Fac Fac Ext Fac DSF Fac Upp Upp War Matter Collected 6371 | 183 162 699 160 317 560 317 553 99 580 1424 . 211 402 446 258 . Remotely . | . . . . . . . . . . . . . . . . . Salvage Created 12100 | . 455 1387 649 797 914 342 2000 52 487 2351 . 352 1395 526 393 . Parts 610 | . 28 88 43 33 59 26 79 4 24 117 . 15 62 23 9 . Haulers Intercepted 10 | . . 3 4 . 3 . . . . . . . . . . . Recyclers Shooed 3 | . . . . . 2 . . . . . . . 1 . . . Parts Field Recycled . | . . . . . . . . . . . . . . . . . Retrieved Matter . | . . . . . . . . . . . . . . . . . Parts Self-Destructed 21 | . . . . . . . . . . . . . . 16 5 . Prevented . | . . . . . . . . . . . . . . . . . Kills | -11 -10 -9 -8 -8 -8 -7 -7 -7 -6 -6 -5 -5 -4 -4 -4 -4 ------- Run | Yrd Mat Mat Mat Gar Mat Fac Gar Fac Fac Ext Fac DSF Fac Upp Upp War Combat Hostiles Destroyed 229 | . 10 26 12 24 19 6 36 1 9 36 . 6 28 12 4 . Melee 2 | . . . . . 1 . 1 . . . . . . . . . Guns 136 | . 10 10 8 15 12 6 18 1 6 23 . 5 21 . 1 . Cannons 16 | . . 11 . . . . . . . . . . 1 3 1 . AOE 68 | . . 5 3 9 6 . 15 . 3 13 . 1 4 9 . . Classes Destroyed 20 | . 5 5 1 1 3 . . . 1 3 . . . 1 . . Worker 13 | . 1 3 . . 1 1 . . 1 3 . . 3 . . . Builder 10 | . 1 1 . . . . . . . 6 . . 2 . . . Tunneler 6 | . . 1 2 . 1 . . . . . . . 2 . . . Hauler 10 | . . 3 4 . 3 . . . . . . . . . . . Recycler 3 | . . . . . . . . . . 3 . . . . . . Minesweeper 1 | . . . . . . . . . . . . . . 1 . . Mechanic 1 | . . . . . . . . . . 1 . . . . . . Operator 6 | . . 3 1 . . . . . . 1 . . 1 . . . Watcher 13 | . 3 5 1 . 2 . . . . 2 . . . . . . Swarmer 61 | . 5 3 4 6 7 . 10 . . 5 . 4 7 10 . . Grunt 91 | . 5 14 4 9 5 4 15 1 4 16 . 1 12 1 . . Brawler 4 | . . 1 . 1 1 . . . . 1 . . . . . . Duelist 4 | . . . . . 1 . 3 . . . . . . . . . Protector 1 | . . . . . 1 . . . . . . . . . . . Sentry 44 | . . 8 2 6 4 1 7 . 4 10 . . 1 1 . . Demolisher 1 | . . . . . 1 . . . . . . . . . . . Specialist 3 | . . . . 2 . . 1 . . . . . . . . . Hunter 4 | . . . 2 . . 1 . . . . . 1 . . . . Programmer 14 | . . . . . . . . . 1 1 . . 8 . 4 . Behemoth 2 | . . . . . . . . . . 2 . . . . . . Packrat 2 | . . . . . . . . . . . . . . 1 1 . Thug 1 | . . . . . . . . . . 1 . . . . . . Best Kill Streak 8 | . 4 4 5 7 5 3 8 1 6 8 . 3 8 7 2 . Combat Bots Only 8 | . 3 4 4 7 4 3 8 1 5 7 . 3 4 6 2 . Max Kills in Single Turn 7 | . 1 2 4 3 4 1 3 1 2 4 . 1 7 3 1 . Gunslinging 1 | . . . . . 1 . . . . . . . . . . . Exploded 4 | . . 1 3 3 2 . 3 . 2 4 . 1 2 3 . . Melee 1 | . . . . . 1 . 1 . . . . . . . . . Uniques/NPCs Destroyed . | . . . . . . . . . . . . . . . . . Combat | -11 -10 -9 -8 -8 -8 -7 -7 -7 -6 -6 -5 -5 -4 -4 -4 -4 -------- Run | Yrd Mat Mat Mat Gar Mat Fac Gar Fac Fac Ext Fac DSF Fac Upp Upp War Hostile Shots Fired 1808 | . 65 86 61 166 77 93 327 . 136 324 . 25 340 27 78 3 Missed 547 | . 23 24 19 51 26 28 116 . 49 85 . 6 82 17 20 1 Hits 1261 | . 42 62 42 115 51 65 211 . 87 239 . 19 258 10 58 2 Melee 6 | . . . . . . . 6 . . . . . . . . . Projectile 1255 | . 42 62 42 115 51 65 205 . 87 239 . 19 258 10 58 2 AOE 9 | . . . . . 8 . . . 1 . . . . . . . Critical Strikes 47 | . 1 5 1 8 3 2 5 . 2 1 . 1 11 1 6 . Part Disruptions 3 | . . . . . . . . . . . . . 2 . . 1 Damage Taken 18909 | . 511 830 633 1507 1017 889 2391 . 1030 2732 . 478 5046 226 1324 295 Core 2360 | . 149 75 49 175 156 98 323 . 28 141 . 13 641 67 326 119 Absorbed by Shields 287 | . . . . . . . . . . . . . . 69 218 . Reduced by Siege Mode 315 | . . . . . . . 83 . 75 100 . . 57 . . . Redirected to Shielding 26 | . . . . . . . . . . . . . . . 25 1 Regen/Repaired (Parts) 984 | . . . . . . . . . 516 . . . 468 . . . Core Remaining (%) 66 | 100 40 81 . . 30 . . 39 . 80 . 98 . . . . Volleys Fired 681 | . 45 111 43 67 68 23 85 4 25 89 . 16 65 22 18 . Largest 3 | . 2 2 2 2 2 2 2 2 3 3 . 3 3 3 3 . Hottest 294 | . 80 126 126 140 140 53 160 56 92 156 . 181 294 211 212 . Shots Fired 1519 | . 90 220 86 134 136 46 167 8 67 248 . 41 188 40 48 . Gun 1363 | . 90 169 85 125 133 46 157 8 64 230 . 33 168 17 38 . Cannon 92 | . . 42 . . . . . . . 9 . 5 13 14 9 . Launcher 61 | . . 9 1 9 3 . 10 . 3 9 . 3 7 6 1 . Special 3 | . . . . . . . . . . . . . . 3 . . Kinetic 619 | . 7 149 . . 73 46 12 8 64 233 . 9 . 7 11 . Thermal 734 | . . 48 85 125 60 . 145 . . 6 . 29 181 19 36 . Explosive 61 | . . 9 1 9 3 . 10 . 3 9 . 3 7 6 1 . Electromagnetic 102 | . 83 14 . . . . . . . . . . . 5 . . Robot Hit Streak 60 | . 6 10 8 17 13 8 60 3 14 32 . 10 16 8 5 . Robot Miss Streak 6 | . 5 4 2 3 4 2 6 1 2 6 . 3 5 2 4 . Penetration Max 1 | . . . . . 1 1 . . 1 1 . . . . . . Secondary Targets 17 | . . . . 4 1 . 2 . . 5 . . 4 . 1 . Max Gunslinging Chain 1 | . . . . 1 1 . 1 . . 1 . . 1 . 1 . Shots Hit Robots 1002 | . 42 127 55 75 89 35 132 5 41 185 . 31 135 25 25 . Core Hits 661 | . 23 71 28 43 44 14 144 3 27 127 . 25 84 20 8 . Critical Kills 1 | . . . . . . . . . . . . . 1 . . . Critical Parts Destroyed 6 | . . 1 . . 1 1 . 1 . 2 . . . . . . Critical Strikes 43 | . 3 1 4 8 3 1 8 1 . 2 . 1 6 1 4 . Burn 31 | . . . 4 8 2 . 7 . . . . 1 5 . 4 . Meltdown 1 | . . . . . . . . . . . . . 1 . . . Destroy 7 | . . 1 . . 1 1 1 1 . 2 . . . . . . Corrupt 4 | . 3 . . . . . . . . . . . . 1 . . Melee Attacks 23 | . . . . . 2 . 11 . 6 2 . . . . 2 . Impact 8 | . . . . . . . . . 6 2 . . . . . . Slashing 15 | . . . . . 2 . 11 . . . . . . . 2 . Piercing . | . . . . . . . . . . . . . . . . . Sneak Attacks 1 | . . . . . . . 1 . . . . . . . . . Combat Hostiles 1 | . . . . . . . 1 . . . . . . . . . Follow-up Attacks . | . . . . . . . . . . . . . . . . . Damage Inflicted 30630 | . 699 2491 1204 2252 2383 641 4366 97 1275 6550 . 801 5617 1541 713 . Guns 18787 | . 625 1202 1018 1361 1726 641 2907 97 831 4151 . 615 2828 203 582 . Cannons 1587 | . . 535 . . . . . . . 147 . 69 362 343 131 . Explosions 10151 | . 74 754 186 891 630 . 1389 . 436 2252 . 117 2427 995 . . Melee 97 | . . . . . 27 . 70 . . . . . . . . . Ramming 8 | . . . . . . . . . 8 . . . . . . . Kinetic 8234 | . 20 1007 . . 999 641 184 97 831 4151 . 125 . 65 114 . Thermal 12502 | . 74 620 1018 1361 837 . 2723 . . 147 . 559 4095 469 599 . Explosive 8823 | . . 754 186 891 342 . 1389 . 436 2252 . 117 1522 934 . . Electromagnetic 966 | . 605 110 . . 178 . . . . . . . . 73 . . Impact . | . . . . . . . . . . . . . . . . . Slashing 97 | . . . . . 27 . 70 . . . . . . . . . Piercing . | . . . . . . . . . . . . . . . . . Highest Corruption 26 | . 2 . . . 10 . . . . 1 . . 13 13 24 26 Average Corruption 7 | . 1 . . . 9 . . . . 1 . . 4 10 19 25 Corruption Purged 3 | . . . . . . . . . . . . . . 3 . . Corruption Blocked . | . . . . . . . . . . . . . . . . . Effects 129 | . 7 . . . 16 . . . . 14 . . 17 38 34 3 Message Errors 27 | . 1 . . . 5 . . . . 3 . . 7 4 7 . Matter Fused 26 | . 1 . . . 3 . . . . 4 . . 3 6 8 1 Heat Flow Errors 24 | . 1 . . . 3 . . . . 1 . . 3 7 8 1 Energy Discharges 15 | . 1 . . . 3 . . . . 3 . . 1 4 3 . Parts Fused 1 | . 1 . . . . . . . . . . . . . . . Data Loss (minor) 16 | . 2 . . . 1 . . . . 1 . . 1 8 3 . Data Loss (major) 7 | . . . . . . . . . . 2 . . . 4 . 1 Misfires 4 | . . . . . . . . . . . . . . 2 2 . Alerts 3 | . . . . . 1 . . . . . . . 1 1 . . Misdirections 2 | . . . . . . . . . . . . . 1 1 . . Weapon Failures 4 | . . . . . . . . . . . . . . 1 3 . Overload Shots . | . . . . . . . . . . . . . . . . . Overflow Damage 536 | . . 2 . 6 . . 13 . 16 57 . . 262 156 24 . Projectiles 81 | . . 1 . . . . . . . . . . . 56 24 . Explosions 455 | . . 1 . 6 . . 13 . 16 57 . . 262 100 . . Melee . | . . . . . . . . . . . . . . . . . Knockbacks . | . . . . . . . . . . . . . . . . . Impact . | . . . . . . . . . . . . . . . . . Kinetic . | . . . . . . . . . . . . . . . . . Secondary . | . . . . . . . . . . . . . . . . . Self-Inflicted Damage 608 | . 45 17 . 57 100 . 135 . . 33 . . 91 130 . . Shots 19 | . 1 1 . 2 4 . 5 . . 1 . . 2 3 . . Rammed 1 | . . . . . . . . . 1 . . . . . . . Targets Rammed 1 | . . . . . . . . . 1 . . . . . . . Kicked . | . . . . . . . . . . . . . . . . . Crushed . | . . . . . . . . . . . . . . . . . Highest Temperature 518 | . 151 292 163 126 413 18 483 359 259 164 . 45 518 430 375 272 Average Temperature 75 | . 43 57 49 30 77 4 84 181 97 37 . 12 136 131 142 117 Received Heat Transfer 4210 | . 189 387 225 504 207 261 639 . 241 795 . 36 704 18 4 . Effects 19 | . . . . . 3 . 6 1 3 . . . 5 1 . . Shutdowns 4 | . . . . . 1 . 1 . . . . . 1 1 . . Energy Bleed 6 | . . . . . 2 . 1 1 . . . . 2 . . . Interference 3 | . . . . . . . . . 3 . . . . . . . Short Circuit 1 | . . . . . . . . . . . . . 1 . . . Damage (minor) 2 | . . . . . . . 1 . . . . . 1 . . . Damage (major) 3 | . . . . . . . 3 . . . . . . . . . Siege Activations 27 | . . . . . . . 3 . 4 9 . 1 10 . . . Total Turns 367 | . . . . . . . 34 . 71 110 . 11 141 . . . Longest Duration 30 | . . . . . . . 20 . 27 27 . 11 30 . . . Martial Activations . | . . . . . . . . . . . . . . . . . Shielding Activations . | . . . . . . . . . . . . . . . . . Robots Disrupted . | . . . . . . . . . . . . . . . . . Combat Hostiles . | . . . . . . . . . . . . . . . . . Robots Corrupted . | . . . . . . . . . . . . . . . . . Combat Hostiles . | . . . . . . . . . . . . . . . . . Parts Fried 2 | . 1 . . . 1 . . . . . . . . . . . Impact Corruptions . | . . . . . . . . . . . . . . . . . Robots Melted 8 | . . . 1 . . . 3 . . . . . 2 . 2 . Combat Hostiles 7 | . . . 1 . . . 2 . . . . . 2 . 2 . Parts Melted 77 | . . . 6 11 2 . 22 . 1 . . 2 24 1 8 . Heat Transferred 24825 | . 100 1147 2405 3425 1925 . 6296 . . 175 . 1218 6331 570 1233 . Parts Sabotaged . | . . . . . . . . . . . . . . . . . Parts Stolen . | . . . . . . . . . . . . . . . . . Parts Stripped . | . . . . . . . . . . . . . . . . . Power Chain Reactions 2 | . 1 . . . . . . . . . . . . 1 . . Alert | -11 -10 -9 -8 -8 -8 -7 -7 -7 -6 -6 -5 -5 -4 -4 -4 -4 ------- Run | Yrd Mat Mat Mat Gar Mat Fac Gar Fac Fac Ext Fac DSF Fac Upp Upp War Maximum Alert Level 4 | . . 2 1 3 4 2 4 2 1 3 1 2 3 . . . Low Security (%) 37 | 100 100 66 42 5 . . 5 . 44 56 . . 39 . . . Level 1 25 | . . 16 57 21 . 58 21 . 55 20 100 71 36 . . . Level 2 17 | . . 17 . 32 10 41 35 100 . 12 . 28 20 . . . Level 3 16 | . . . . 40 80 . 15 . . 10 . . 3 . . . Level 4 3 | . . . . . 8 . 21 . . . . . . . . . Level 5 . | . . . . . . . . . . . . . . . . . High Security . | . . . . . . . . . . . . . . . . . Max Security . | . . . . . . . . . . . . . . . . . Sterilizations 1 | . . . . . . . . . . . . 1 . . . . Peak Influence 1172 | . 161 464 281 1045 1121 484 1172 672 355 817 397 560 876 . . . Initial 615 | . . 67 194 177 508 484 198 615 304 44 397 263 294 . . . Average 367 | . 46 166 210 592 887 363 645 612 201 240 390 379 250 . . . Influence Increases 9797 | . 446 949 405 938 1221 187 1134 137 431 1849 . 367 1343 270 120 . Destroy 0b10 Robot/C 5580 | . 200 520 240 600 700 120 760 80 220 1060 . 200 560 240 80 . Destroy 0b10 Robot/NC 390 | . 25 80 40 . 60 5 30 . 10 80 . 5 40 10 5 . Destroy Leader 948 | . 46 156 70 20 192 30 50 20 70 124 . 30 100 20 20 . Allied During Kill 611 | . . . . 23 103 . 16 20 17 407 . 23 2 . . . Successful Hack 212 | . 36 54 11 30 16 . . 16 20 25 . . 4 . . . Select Force Hacks 30 | . . . . . 30 . . . . . . . . . . . Disable Machine 450 | . 15 45 30 . 75 . . . 15 15 . 15 240 . . . Anti-Garrison Action 300 | . . . . 200 . . 100 . . . . . . . . . Destroy Structure 691 | . 4 64 14 65 45 2 88 1 19 93 . 64 232 . . . Partial Spotted 15 | . . . . . . 15 . . . . . . . . . . Lose Combat Pursuer 570 | . 120 30 . . . 15 90 . 60 45 . 30 165 . 15 . Influence Decreases 9797 | . 285 649 593 166 1200 970 245 687 961 1129 435 184 1089 710 494 . Entered New Map 3753 | . . 94 267 96 537 582 85 557 318 48 415 114 266 302 72 . Time Decay 4400 | . 265 515 326 . 553 198 . 130 553 614 20 . 553 398 275 . Lost Part 797 | . 10 40 . 70 30 40 140 . 30 50 . 10 220 10 147 . Lost Ally 697 | . 10 . . . 80 . 20 . 60 417 . 60 50 . . . Purge Threat 150 | . . . . . . 150 . . . . . . . . . . Squads Dispatched 47 | . 1 3 4 . 10 3 . 1 3 8 . 1 13 . . . Investigation 9 | . . . 1 . 1 . . 1 . 5 . . 1 . . . Extermination 6 | . . . . . . . . . 2 . . . 4 . . . Reinforcement 17 | . 1 3 3 . 1 1 . . 1 1 . 1 5 . . . Assault 7 | . . . . . 2 . . . . 2 . . 3 . . . Garrison 8 | . . . . . 6 2 . . . . . . . . . . Intercept . | . . . . . . . . . . . . . . . . . Searches Triggered . | . . . . . . . . . . . . . . . . . Construction Impeded 1 | . . . . . . . . . . . . . 1 . . . Haulers Reinforced 2 | . . . . . . . . . 1 . . . 1 . . . Active Scanning Responses . | . . . . . . . . . . . . . . . . . Cargo Convoy Interrupts . | . . . . . . . . . . . . . . . . . Stealth | -11 -10 -9 -8 -8 -8 -7 -7 -7 -6 -6 -5 -5 -4 -4 -4 -4 --------- Run | Yrd Mat Mat Mat Gar Mat Fac Gar Fac Fac Ext Fac DSF Fac Upp Upp War Distress Signals 26 | . . 5 1 . 6 1 . . 4 4 . . 5 . . . Communications Jammed . | . . . . . . . . . . . . . . . . . Distress Signals . | . . . . . . . . . . . . . . . . . Times Spotted 386 | . 24 47 19 28 42 15 41 5 24 55 . 11 54 11 9 1 Peak Tracking Total 8 | . 5 5 7 7 4 7 7 2 6 7 . 5 8 4 5 2 Tactical Retreats 20 | . 5 2 . . . 1 3 . 1 2 . 1 4 . 1 . Traps | -11 -10 -9 -8 -8 -8 -7 -7 -7 -6 -6 -5 -5 -4 -4 -4 -4 ------- Run | Yrd Mat Mat Mat Gar Mat Fac Gar Fac Fac Ext Fac DSF Fac Upp Upp War Traps Triggered 15 | . 2 . 1 . 1 . 2 . . 4 . . 1 . . 4 Indirectly . | . . . . . . . . . . . . . . . . . Trap Hack Attempts . | . . . . . . . . . . . . . . . . . Triggered . | . . . . . . . . . . . . . . . . . Disarmed . | . . . . . . . . . . . . . . . . . Reprogrammed . | . . . . . . . . . . . . . . . . . Reused . | . . . . . . . . . . . . . . . . . Traps Extracted . | . . . . . . . . . . . . . . . . . Installed . | . . . . . . . . . . . . . . . . . Triggered . | . . . . . . . . . . . . . . . . . Most Traps Carried 2 | . . . . . . . . . . . . . . 2 2 2 Machines | -11 -10 -9 -8 -8 -8 -7 -7 -7 -6 -6 -5 -5 -4 -4 -4 -4 ---------- Run | Yrd Mat Mat Mat Gar Mat Fac Gar Fac Fac Ext Fac DSF Fac Upp Upp War Machines Disabled 34 | . 1 3 2 2 5 . . . 1 2 . 1 16 . 1 . Max in Single Turn 14 | . 1 1 1 1 2 . . . 1 1 . 1 14 . 1 . Garrison Access 2 | . . . . . . . . . 2 . . . . . . . Garrison Relay 2 | . . . . 2 . . . . . . . . . . . . Machines Repaired . | . . . . . . . . . . . . . . . . . Machines Dismantled . | . . . . . . . . . . . . . . . . . Machines Sabotaged . | . . . . . . . . . . . . . . . . . Overloaded Fab Kills . | . . . . . . . . . . . . . . . . . Hacking | -11 -10 -9 -8 -8 -8 -7 -7 -7 -6 -6 -5 -5 -4 -4 -4 -4 --------- Run | Yrd Mat Mat Mat Gar Mat Fac Gar Fac Fac Ext Fac DSF Fac Upp Upp War Machines Accessed 69 | . 5 10 4 4 9 4 . 2 8 11 2 . 7 1 2 . Terminals 48 | . 5 7 3 4 7 2 . 2 1 11 2 . 3 1 . . Fabricators 1 | . . . . . . . . . . . . . 1 . . . Repair Stations 5 | . . . . . . . . . 3 . . . 2 . . . Recycling Units 6 | . . 1 . . 1 1 . . 2 . . . 1 . . . Scanalyzers 2 | . . 2 . . . . . . . . . . . . . . Garrison Access 5 | . . . 1 . 1 1 . . 2 . . . . . . . Total Hacks 149 | . 15 25 10 5 20 5 . 4 20 23 3 . 16 1 2 . Successful 69 | . 10 11 5 4 7 2 . 1 10 8 1 . 7 1 2 . Failed 80 | . 5 14 5 1 13 3 . 3 10 15 2 . 9 . . . Catastrophic 20 | . 2 5 . . 2 . . 1 2 4 1 . 3 . . . Database Lockouts . | . . . . . . . . . . . . . . . . . Manual 57 | . 11 16 6 . 10 1 . 1 3 3 1 . 5 . . . Terminals 109 | . 15 21 9 5 16 3 . 4 3 23 3 . 6 1 . . Fabricators 5 | . . . . . . . . . . . . . 5 . . . Repair Stations 13 | . . . . . . . . . 10 . . . 3 . . . Recycling Units 11 | . . 1 . . 2 1 . . 5 . . . 2 . . . Scanalyzers 3 | . . 3 . . . . . . . . . . . . . . Garrison Access 6 | . . . 1 . 2 1 . . 2 . . . . . . . Terminal Hacks 39 | . 7 8 4 4 3 1 . . 1 7 1 . . 1 2 . Record 2 | . . . . . . . . . . . . . . 1 1 . Robot Analysis 3 | . . 2 . . 1 . . . . . . . . . . . Prototype ID Bank 5 | . 2 3 . . . . . . . . . . . . . . Open Door 9 | . . . . 1 . . . . . 7 . . . . 1 . Open DSF 1 | . . . . . . . . . . . 1 . . . . . Level Access Points 1 | . 1 . . . . . . . . . . . . . . . Branch Access Points 3 | . 1 . . . 1 . . . 1 . . . . . . . Emergency Access Points 1 | . . . . 1 . . . . . . . . . . . . Terminal Index 1 | . . . 1 . . . . . . . . . . . . . Alert Level 2 | . . 1 1 . . . . . . . . . . . . . Unreport Threat 1 | . . . . . . 1 . . . . . . . . . . Security Status 1 | . 1 . . . . . . . . . . . . . . . Transport Status 1 | . . 1 . . . . . . . . . . . . . . Recall Reinforcements 1 | . . . 1 . . . . . . . . . . . . . Hauler Manifests 3 | . 1 1 1 . . . . . . . . . . . . . Registered Components 1 | . 1 . . . . . . . . . . . . . . . Zone Layout 1 | . . . . . 1 . . . . . . . . . . . Garrison Registry 1 | . . . . 1 . . . . . . . . . . . . Security Stations 1 | . . . . 1 . . . . . . . . . . . . Fabricator Hacks 2 | . . . . . . . . . . . . . 2 . . . Network Status 1 | . . . . . . . . . . . . . 1 . . . Build 1 | . . . . . . . . . . . . . 1 . . . Repair Station Hacks 6 | . . . . . . . . . 4 . . . 2 . . . Scan Component 4 | . . . . . . . . . 3 . . . 1 . . . Repair 2 | . . . . . . . . . 1 . . . 1 . . . Recycling Unit Hacks 8 | . . 1 . . 2 . . . 3 . . . 2 . . . Report Inventory 5 | . . 1 . . 1 . . . 2 . . . 1 . . . Retrieve Components 3 | . . . . . 1 . . . 1 . . . 1 . . . Scanalyzer 2 | . . 2 . . . . . . . . . . . . . . Insert Component 1 | . . 1 . . . . . . . . . . . . . . Analyze 1 | . . 1 . . . . . . . . . . . . . . Garrison Access Hacks 5 | . . . 1 . 1 1 . . 2 . . . . . . . Unlock Access 2 | . . . 1 . . 1 . . . . . . . . . . Seal Access 2 | . . . . . . . . . 2 . . . . . . . Coupler Status 1 | . . . . . 1 . . . . . . . . . . . Unauthorized Hacks 7 | . 3 . . . 1 . . 1 . 1 . . 1 . . . Terminals 6 | . 3 . . . . . . 1 . 1 . . 1 . . . Assimilate 2 | . 1 . . . . . . 1 . . . . . . . . Botnet 3 | . 1 . . . . . . . . 1 . . 1 . . . Operators 1 | . 1 . . . . . . . . . . . . . . . Fabricators . | . . . . . . . . . . . . . . . . . Repair Stations . | . . . . . . . . . . . . . . . . . Recycling Units . | . . . . . . . . . . . . . . . . . Scanalyzers . | . . . . . . . . . . . . . . . . . Garrison Access 1 | . . . . . 1 . . . . . . . . . . . Eject 1 | . . . . . 1 . . . . . . . . . . . Data Cores Recovered 1 | . . . . . 1 . . . . . . . . . . . Used . | . . . . . . . . . . . . . . . . . Hacking Detections 53 | . 3 9 3 2 7 3 . 2 6 9 2 . 7 . . . Full Trace Events 9 | . . 1 2 . 1 . . 1 . 4 . . . . . . Feedback Events . | . . . . . . . . . . . . . . . . . Feedback Blocked . | . . . . . . . . . . . . . . . . . Robot Schematics Acquired . | . . . . . . . . . . . . . . . . . Robots Built . | . . . . . . . . . . . . . . . . . Authchips . | . . . . . . . . . . . . . . . . . Time . | . . . . . . . . . . . . . . . . . Total Robot Build Rating . | . . . . . . . . . . . . . . . . . Part Schematics Acquired 1 | . . 1 . . . . . . . . . . . . . . Parts Built 2 | . . . . . . . . . . . . . 2 . . . Authchips . | . . . . . . . . . . . . . . . . . Time 139 | . . . . . . . . . . . . . 139 . . . Total Part Build Rating 18 | . . . . . . . . . . . . . 18 . . . Parts Repaired 2 | . . . . . . . . . 1 . . . 1 . . . Time 148 | . . . . . . . . . 86 . . . 62 . . . Parts Recycled . | . . . . . . . . . . . . . . . . . Recycled Matter . | . . . . . . . . . . . . . . . . . Retrieved Matter . | . . . . . . . . . . . . . . . . . Retrieved Components 6 | . . . . . 3 . . . 2 . . . 1 . . . Parts Scanalyzed 1 | . . 1 . . . . . . . . . . . . . . Part Schematics Acquired 1 | . . 1 . . . . . . . . . . . . . . Parts Damaged . | . . . . . . . . . . . . . . . . . Bothacking | -11 -10 -9 -8 -8 -8 -7 -7 -7 -6 -6 -5 -5 -4 -4 -4 -4 ------------ Run | Yrd Mat Mat Mat Gar Mat Fac Gar Fac Fac Ext Fac DSF Fac Upp Upp War Used RIF Installer 3 | . . . . 2 . . 1 . . . . . . . . . Coupler Efficiency 1 | . . . . 1 . . . . . . . . . . . . Watcher Feeds 1 | . . . . . . . 1 . . . . . . . . . Robots Hacked 1 | . . . . . . . . . . . . . . 1 . . Non-combat 1 | . . . . . . . . . . . . . . 1 . . Combat . | . . . . . . . . . . . . . . . . . Robot Hacks Applied 1 | . . . . . . . . . . . . . . 1 . . parse_system 1 | . . . . . . . . . . . . . . 1 . . Relay Couplers Released 11 | . . . . 8 3 . . . . . . . . . . . Ejected 3 | . . . . . 3 . . . . . . . . . . . Machine Destruction 8 | . . . . 8 . . . . . . . . . . . . Attached 2 | . . . . . . . . 1 1 . . . . . . . Fabnet Peak Effective % . | . . . . . . . . . . . . . . . . . Robots Rewired 24 | . . . . 3 . . 2 . . 19 . . . . . . Allies Hacked . | . . . . . . . . . . . . . . . . . Hacks Repelled . | . . . . . . . . . . . . . . . . . Allies | -11 -10 -9 -8 -8 -8 -7 -7 -7 -6 -6 -5 -5 -4 -4 -4 -4 -------- Run | Yrd Mat Mat Mat Gar Mat Fac Gar Fac Fac Ext Fac DSF Fac Upp Upp War Total Allies 40 | . 1 . . 5 . . 4 . . 30 . . . . . . Largest Group 15 | . 1 . . 5 5 . 3 3 3 15 4 4 1 . . . Highest-Rated Group 413 | . 10 . . 109 109 . 76 76 76 413 113 113 25 . . . Highest-Rated Ally 39 | . 10 . . 39 39 . 31 31 31 39 31 31 25 . . . Total Orders 8 | . . . . . . . . . . 1 . . 7 . . . ROAM 1 | . . . . . . . . . . 1 . . . . . . EXPLORE 5 | . . . . . . . . . . . . . 5 . . . RETURN 2 | . . . . . . . . . . . . . 2 . . . Ally Attacks 326 | . . . . 15 81 . 4 15 19 173 . 18 1 . . . Total Damage 6242 | . . . . 274 1500 . 95 313 453 3243 . 331 33 . . . Kills 58 | . . . . 6 21 . 2 3 3 19 . 4 . . . . Allies Corrupted 1 | . . . . . . . . . . . . 1 . . . . Allies Melted 2 | . . . . . . . . . . 2 . . . . . . Intel | -11 -10 -9 -8 -8 -8 -7 -7 -7 -6 -6 -5 -5 -4 -4 -4 -4 ------- Run | Yrd Mat Mat Mat Gar Mat Fac Gar Fac Fac Ext Fac DSF Fac Upp Upp War Active Infowar (turns) 9205 | . 383 1518 736 1238 1610 400 1 243 1612 613 36 307 508 . . . Optics 5073 | . . 1486 736 1238 1610 3 . . . . . . . . . . Terrain 5230 | . 383 1129 . . . 398 1 243 1612 613 36 307 508 . . . Robot Analysis Total 3 | . . 2 . . 1 . . . . . . . . . . . Derelict Logs Recovered 4 | . . . . . . . . . . . . . . 2 2 . Drone Launches 11 | . . . . . . . . . . . . . 11 . . . Drone Recoveries 8 | . . . . . . . . . . . . . 8 . . . Exploration | -11 -10 -9 -8 -8 -8 -7 -7 -7 -6 -6 -5 -5 -4 -4 -4 -4 ------------- Run | Yrd Mat Mat Mat Gar Mat Fac Gar Fac Fac Ext Fac DSF Fac Upp Upp War Turns Passed 17262 | 73 855 1518 736 1238 1610 400 1619 271 1612 3588 43 307 1602 948 739 103 Spaces Moved 8564 | 36 402 683 353 592 761 180 649 135 785 1727 26 124 707 671 635 98 Core 62 | 2 . . . . . . . . . . . . 27 14 . 19 Treads 6921 | 34 402 683 353 592 761 180 390 116 785 1727 26 124 680 68 . . Legs 201 | . . . . . . . 199 . . . . . . 2 . . Wheels 1380 | . . . . . . . 60 19 . . . . . 587 635 79 Hover . | . . . . . . . . . . . . . . . . . Flight . | . . . . . . . . . . . . . . . . . Fastest Speed 50 | 50 160 160 160 160 160 160 130 145 160 160 160 160 50 50 90 90 Average Speed 152 | 153 160 160 160 160 160 161 178 163 160 160 160 160 149 124 99 105 Slowest Speed 320 | 160 160 240 160 240 240 240 240 240 160 160 160 160 160 320 119 200 Overloaded Moves . | . . . . . . . . . . . . . . . . . Propulsion Burnouts . | . . . . . . . . . . . . . . . . . Robots Hopped . | . . . . . . . . . . . . . . . . . Potential Cave-ins 6 | . . . . . 1 . 5 . . . . . . . . . Cave-ins Triggered . | . . . . . . . . . . . . . . . . . Exploration Rate (%) 47 | 4 64 81 37 61 65 6 74 4 21 96 1 94 23 76 88 20 Regions Visited 16 Branch Regions 4 Pre-discovered Areas 1 | . . . . . . . . . . . . . . 1 . . Known Exits Taken 7 | . 1 . 1 . . 1 . . 1 . 1 . . 1 1 . Unknown Exits Taken 6 | 1 . 1 . . 1 . . 1 . 1 . . 1 . . . Scrap Searched 4 | . . . . . . . . . . . . . . 2 2 . Spaces Dug 23 | . . . . . 1 . 16 . 6 . . . . . . . Terrain Destroyed 660 | . 4 76 12 10 45 . 90 . 23 117 . 37 129 91 26 . Melee 13 | . . . . . 1 . 6 . 6 . . . . . . . Projectile 34 | . . . . . . . 1 . 2 9 . . 11 3 8 . AOE 612 | . 4 76 12 10 44 . 83 . 15 107 . 37 118 88 18 . Terrain Rammed . | . . . . . . . . . . . . . . . . . Walls Destroyed . | . . . . . . . . . . . . . . . . . Machines Disabled . | . . . . . . . . . . . . . . . . . Actions | -11 -10 -9 -8 -8 -8 -7 -7 -7 -6 -6 -5 -5 -4 -4 -4 -4 --------- Run | Yrd Mat Mat Mat Gar Mat Fac Gar Fac Fac Ext Fac DSF Fac Upp Upp War Total 11364 | 51 525 904 441 745 1025 257 915 185 1074 2368 28 198 1106 742 702 98 Wait 1157 | . 64 40 12 35 142 30 54 5 212 233 1 28 268 9 24 . Move 8546 | 35 401 682 352 590 760 179 647 134 784 1726 25 123 706 670 634 98 Hop . | . . . . . . . . . . . . . . . . . Pick Up 137 | 5 7 13 8 6 7 5 22 3 10 22 . 11 10 5 3 . Fast Attach 95 | 7 1 7 6 3 7 5 10 4 5 6 . . 10 17 7 . Attach 79 | 1 1 3 1 6 5 2 16 10 4 10 2 2 11 3 2 . Detach 55 | 2 . 3 1 2 4 2 11 7 3 9 . . 9 2 . . Swap 152 | 1 3 24 7 12 15 3 16 3 14 18 . 8 16 7 5 . Drop 160 | . 3 21 11 5 15 8 12 15 10 27 . 9 11 6 7 . Fire 681 | . 45 111 43 67 68 23 85 4 25 89 . 16 65 22 18 . Melee 23 | . . . . . 2 . 11 . 6 2 . . . . 2 . Ram . | . . . . . . . . . . . . . . . . . Kick . | . . . . . . . . . . . . . . . . . Crush 1 | . . . . . . . . . 1 . . . . . . . Escape Stasis 12 | . . . . 2 . . 10 . . . . . . . . . Rewire 266 | . . . . 17 . . 21 . . 226 . 1 . 1 . . Trap . | . . . . . . . . . . . . . . . . . Miscellaneous . | . . . . . . . . . . . . . . . . . Route ------- -11/Scrapyard -10/Materials (discovered 4 exits: *Mat x3 / Min) -9/Materials (discovered 4 exits: *Mat x2 / [*Min] / [*Sto]) -8/Materials (discovered 2 exits: *Fac / Gar) -8/Garrison (discovered 3 exits: *Mat x3) -8/Materials -7/Factory -7/Garrison (discovered 3 exits: *Fac x3) -7/Factory -6/Factory (discovered 5 exits: *Fac / Low x2 / *Ext x2) -6/Extension (discovered 3 exits: *Fac x2 / [*Cet]) -5/Factory -5/DSF -4/Factory (discovered 3 exits: *Res x2 / *Upp) -4/Upper Caves -4/Upper Caves (discovered 2 exits: *Res / *War) -4/Warlord (discovered 1 exit: *Pro) History --------- Turn | Location | Event 13 | -11/Scrapyard | Discovered new exit (range 15) 74 | -11/Scrapyard | Entered Materials 336 | -10/Materials | Build established: Mutant 776 | -10/Materials | Identified exit to Mines 818 | -10/Materials | Identified exit to Materials 899 | -10/Materials | Core integrity fell below 50% 929 | -10/Materials | Entered another Materials area 929 | -9/Materials | Evolved 2 slots: Utility x2 1395 | -9/Materials | Discovered new exit (range 17) 2093 | -9/Materials | Discovered new exit (range 16) 2099 | -9/Materials | Discovered new exit (range 6) 2191 | -9/Materials | Build established: Scavenger-Mutant 2394 | -9/Materials | Discovered new exit (range 17) 2447 | -9/Materials | Entered another Materials area 2447 | -8/Materials | Evolved 2 slots: Propulsion x1, Utility x1 3131 | -8/Materials | Discovered new exit (range 5) 3166 | -8/Materials | Build established: Mutant 3181 | -8/Materials | Identified exit to Garrison 3183 | -8/Materials | Entered Garrison 3323 | -8/Garrison | Triggered checkpoint 3339 | -8/Garrison | Discovered new exit (range 58) 3339 | -8/Garrison | Discovered new exit (range 43) 3339 | -8/Garrison | Discovered new exit (range 72) 3374 | -8/Garrison | Garrison Relay disabled 3523 | -8/Garrison | Triggered checkpoint 3550 | -8/Garrison | Build established: Scavenger-Mutant 3583 | -8/Garrison | Triggered checkpoint 3623 | -8/Garrison | Learned Materials security intel 3719 | -8/Garrison | Garrison Relay disabled 3863 | -8/Garrison | Triggered checkpoint 3896 | -8/Garrison | Triggered checkpoint 3953 | -8/Garrison | Destroyed 7 combat bots 3959 | -8/Garrison | Triggered checkpoint 3975 | -8/Garrison | Build established: Mutant 4008 | -8/Garrison | Rescued a captive Derelict 4009 | -8/Garrison | Rescued a captive Derelict 4160 | -8/Garrison | Installed Relay Interface Framework 4235 | -8/Garrison | Triggered checkpoint 4318 | -8/Garrison | Expanded RIF knowledge: Coupler Efficiency 4421 | -8/Garrison | Entered Materials 4421 | -8/Materials | Accompanied by 5 allies 4546 | -8/Materials | Garrison activated, responded to threat 4790 | -8/Materials | Build established: Scavenger-Mutant 4862 | -8/Materials | Garrison activated, responded to threat 5173 | -8/Materials | Discovered new exit (range 16) 5240 | -8/Materials | Core integrity fell below 50% 5621 | -8/Materials | First assault squad dispatched 5649 | -8/Materials | System corruption reached 10% 6031 | -8/Materials | Entered Factory 6031 | -7/Factory | Evolved 2 slots: Propulsion x1, Utility x1 6303 | -7/Factory | Garrison activated, responded to threat 6417 | -7/Factory | Identified exit to Garrison 6431 | -7/Factory | Entered Garrison 6505 | -7/Garrison | Triggered checkpoint 6566 | -7/Garrison | Destroyed 8 combat bots 6574 | -7/Garrison | Lost 5 parts (1p2n1u1w) 6719 | -7/Garrison | Triggered checkpoint 6770 | -7/Garrison | Discovered new exit (range 11) 6831 | -7/Garrison | Triggered checkpoint 7319 | -7/Garrison | Discovered new exit (range 13) 7401 | -7/Garrison | Build established: Hauler-Mutant 7413 | -7/Garrison | Triggered checkpoint 7479 | -7/Garrison | Triggered checkpoint 7490 | -7/Garrison | Core integrity fell below 50% 7549 | -7/Garrison | Triggered checkpoint 7594 | -7/Garrison | Discovered new exit (range 8) 7650 | -7/Garrison | Rescued a captive Derelict 7652 | -7/Garrison | Rescued a captive Derelict 7681 | -7/Garrison | Triggered checkpoint 7722 | -7/Garrison | Lost 3 parts (1u2w) 7886 | -7/Garrison | Expanded RIF knowledge: Watcher Feeds 8050 | -7/Garrison | Entered Factory 8050 | -7/Factory | Accompanied by 3 allies 8054 | -7/Factory | Build established: Scavenger-Mutant 8259 | -7/Factory | Discovered new exit (range 11) 8321 | -7/Factory | Entered another Factory area 8321 | -6/Factory | Accompanied by 3 allies 8321 | -6/Factory | Evolved 2 slots: Power x1, Weapon x1 8763 | -6/Factory | Identified exit to Lower Caves 8763 | -6/Factory | Identified exit to Extension 8827 | -6/Factory | Build established: Scavenger-Tank 9004 | -6/Factory | Lost 3 parts (2u1w) 9485 | -6/Factory | Discovered new exit (range 9) 9554 | -6/Factory | Repaired Broken Imp. Heavy Treads 9933 | -6/Factory | Entered Extension 10117 | -6/Extension | Destroyed 7 combat bots 10351 | -6/Extension | Rescued a captive Derelict 10353 | -6/Extension | Rescued a captive Derelict 10575 | -6/Extension | Build established: Commander-Tank 10796 | -6/Extension | Rescued a captive Derelict 10797 | -6/Extension | Rescued a captive Derelict 11033 | -6/Extension | Disrupted transfer network 11333 | -6/Extension | Lost 3 allies 11931 | -6/Extension | Lost 3 allies 11955 | -6/Extension | Spotted B-75 Beast 11965 | -6/Extension | Destroyed B-75 Beast 11986 | -6/Extension | Spotted B-75 Beast 12017 | -6/Extension | Destroyed B-75 Beast 12083 | -6/Extension | Discovered new exit (range 3) 12212 | -6/Extension | Build established: Scavenger-Tank 12233 | -6/Extension | Discovered new exit (range 16) 12238 | -6/Extension | Discovered new exit (range 16) 12632 | -6/Extension | Rescued a captive Derelict 12633 | -6/Extension | Rescued a captive Derelict 12783 | -6/Extension | Rescued a captive Derelict 12784 | -6/Extension | Rescued a captive Derelict 12792 | -6/Extension | Lost 3 allies 12807 | -6/Extension | Rescued a captive Derelict 13083 | -6/Extension | First assault squad dispatched 13133 | -6/Extension | Rescued a captive Derelict 13133 | -6/Extension | Rescued a captive Derelict 13521 | -6/Extension | Entered Factory 13521 | -5/Factory | Accompanied by 4 allies 13521 | -5/Factory | Evolved 2 slots: Utility x2 13564 | -5/Factory | Identified exit to DSF 13564 | -5/Factory | Entered DSF 13564 | -5/DSF | Accompanied by 4 allies 13604 | -5/DSF | Additional patrols routed to DSF 13781 | -5/DSF | Discovered new exit (range 14) 13838 | -5/DSF | Sterilization system engaged 13858 | -5/DSF | Ambient heat levels rising (+10) 13871 | -5/DSF | Entered Factory 13871 | -4/Factory | Accompanied by 1 ally 13871 | -4/Factory | Evolved 2 slots: Propulsion x2 14014 | -4/Factory | Discovered new exit (range 26) 14122 | -4/Factory | Fabricated Lgt. Quantum Reactor? 14172 | -4/Factory | Repaired Imp. Heavy Treads 14568 | -4/Factory | Discovered new exit (range 45) 14692 | -4/Factory | Discovered new exit (range 7) 15121 | -4/Factory | First assault squad dispatched 15328 | -4/Factory | Lost 3 parts (2n1u) 15394 | -4/Factory | Spotted B-86 Titan 15432 | -4/Factory | System corruption reached 10% 15465 | -4/Factory | Core integrity fell below 50% 15473 | -4/Factory | Entered Upper Caves 15475 | -4/Upper Caves | Attracted the attention of an 0b10 checkpoint 15486 | -4/Upper Caves | Found DCF Scrap (13 items) 15490 | -4/Upper Caves | Lost 15 parts (2p6n4u3w) 15585 | -4/Upper Caves | Encountered a Warlord checkpoint 15598 | -4/Upper Caves | Learned 4 Research zone layouts 15712 | -4/Upper Caves | Build established: Derelict-Mutant 15980 | -4/Upper Caves | Learned location of Armory (-4) 16141 | -4/Upper Caves | Build established: Derelict-Gunner 16394 | -4/Upper Caves | Discovered new exit (range 16) 16420 | -4/Upper Caves | Identified exit to Upper Caves 16421 | -4/Upper Caves | Entered another Upper Caves area 16424 | -4/Upper Caves | P-70 Sage assimilated allied OU-7Q4(r) 16507 | -4/Upper Caves | Discovered new exit (range 5) 16510 | -4/Upper Caves | Identified exit to Research 16539 | -4/Upper Caves | Spotted B-86 Titan 16572 | -4/Upper Caves | Encountered a Warlord checkpoint 16583 | -4/Upper Caves | Learned Research terminal intel 16845 | -4/Upper Caves | Lost 4 parts (2n1u1w) 16918 | -4/Upper Caves | Learned Research trap positions 16999 | -4/Upper Caves | Found Alien Artifact 16999 | -4/Upper Caves | Identified Dimensional Node Initializer 16999 | -4/Upper Caves | Initialized slip node 17010 | -4/Upper Caves | Core integrity fell below 20% 17040 | -4/Upper Caves | Lost 8 parts (2p1n3u2w) 17146 | -4/Upper Caves | Discovered new exit (range 16) 17159 | -4/Upper Caves | Identified exit to Warlord 17160 | -4/Upper Caves | Attracted the attention of an 0b10 outpost 17160 | -4/Upper Caves | Entered Warlord 17197 | -4/Warlord | Discovered new exit (range 12) 17206 | -4/Warlord | Identified exit to Proximity Caves 17238 | -4/Warlord | System corruption cleaned by Quarantine Array 17245 | -4/Warlord | RIF detected upon attempting to enter Warlord's base 17245 | -4/Warlord | Attacked by Warlord forces 17263 | -4/Warlord | Spotted LR-VER(B) 17263 | -4/Warlord | Spotted BU-KSM(B) 17263 | -4/Warlord | Destroyed by BU-KSM(B) with Slug Cannon Last Messages --------------- 17194_ An explosion rips through the floor. 17197_ EXIT=FOUND 17206_ EXIT=IDENTIFIED: PROXIMITY CAVES 17216_ System corrupted: Substantial component data lost. 17231_ System corruption misinterpreted. 17231_ Triggered Fire Trap. 17231_ Burning plasma bursts from the floor. 17231_ Mak. Shrapnel Gun destroyed. 17238_ System quarantine in progress... 17238_ ANNOUNCEMENT: Quarantine Array scanned 1 system, cleaned 1. 17245_ ANNOUNCEMENT: Internal threat detected, destroy unregistered bots on sight. 17256_ Triggered Fire Trap. 17256_ Burning plasma bursts from the floor. 17256_ Quantum Rifle destroyed. 17263_ Triggered Fire Trap. 17263_ Burning plasma bursts from the floor. 17263_ Penetrated by Slug. Map ----- +----------------------------------------------------+ | ?????????????????????????????????????????????????? | | ?????????????????????????????????????????????????? | | ?????????????????????????????????????????????????? | | ?????????????????????????????????????????????????? | | ?????????????????????????????????????????????????? | | ?????????????????????????????????????????????????? | | ?????????????????????????????????????????????????? | | ?????????????????????????????????????????????????? | | ?????????????????????????????????????????? ??????? | | ??????????????????????????????????????????? ?????? | | ???????????????????????????????????????????? ????? | | ????????????????????????????????????????????# ???? | | ????????????????????????????????????????????# ### | | ????????????????????????????????????????????# | | ?????????????????????????????????????????????# ## | | ??????????????????????????????????????????????# | | ?????????????????#????????????????????????????### | | ?????????????????# ?????????""??????????????????# | | ?????????????????# ???????#""#?????????????????#" | | ?????????????????# ??????#""#?????????????????## | | ??????????????#### #??####""#####?????????????# | | ??????????????# ?# "" "############??## | | ??????????????#BB # "" """"""""""""#???# | | ?????????????##BB # "" """"""""""""#?### | | ?????????? g / % ^ ### | | ?????????? /@ + | | ?????????? / + | | ?????????? /^ #### | | ???????????#+##BB # "" """"""""""""#??## | | ??????????????#BB # "" """"""""""""#???# | | ??????????????# ?# "" "############???# | | ??????????????#### ##?####""#####?????????????## | | ?????????????????# ??????#""#????????????????## | | ?????????????????# ???????#""?????????????????# | | ????????????????? ?????????""????????????????## | | ????????????????##????????????????????????????# | | ??????????????????????????????????????????????# | | ??????????????????????????????????????????????# # | | ??????????????????????????????????????????????# # | | ?????????????????????????????????????????????## # | | ????????????????????????????????????????????## | | ????????????????????????????????????????????# | | ????????????????????????????????????????????# ## | | ???????????????????????????????????????????# #?## | | ?????????????????????????????????????????? ???# | | ????????????????????????????????????????? ???? | | ???????????????????????????????????????# ## ???? | | ???????????????????????????????????????####?#????? | | ?????????????????????????????????????????????????? | | ?????????????????????????????????????????????????? | +----------------------------------------------------+ Best States ------------- Heat Dissipation 119 Energy Generation 38 Energy Capacity 515 Matter Stores 566 Matter Capacity 600 Sight Range 18 Terrain Scan Range 16 Terrain Scan Density 210 Additional Mass Support 12 Base Temperature (-) 200 Armor Coverage 1200 Utility Shielding 15 Weapon Cycling 20 Phase Shifting 5 Evasion (%) 50 Targeting Accuracy 5 Target Analysis 6 Armor Integrity Analysis 30 Recoil Reduction 6 Particle Charging 25 Salvage Targeting 1 Offensive Hacking 10 Relay Coupler Types 1 Relay Coupler Value 29 Item Schematics ----------------- Hacking Suite | -9/Materials | Scanalyzed Robot Schematics ------------------ None Fabricated ------------ Lgt. Quantum Reactor | x2 | -4/Factory | Preloaded Repaired ---------- Imp. Heavy Treads | 6% | -6/Factory | Broken Imp. Heavy Treads | 14% | -4/Factory Alien Tech Used ----------------- Dimensional Node Initializer Achievements -------------- None Challenges ------------ None Game ------ Seed WardroneVariableLog Manual? 0 Play Time 03:08:04 Cumulative 80.5 hours Start 2025.07.28 @ 22:30:03 End 2025.07.29 @ 12:59:06 Sessions 2 Manual Loads 0 Difficulty Rogue Special Mode None Game No. 56 Rogue 56 Adventurer 0 Explorer 0 Win Type - Total 1 Types 1/0/0/0/0/0/0/0/0/0 Lore% 53 Gallery% 48 Achievement% 42 Wizard Run 0 Options --------- Layout 1 ASCII 0 Keyboard 1 Movement Numpad Keybinds 0 Fullscreen 1 Font 24/Smallcaps Map View 50x35 Zoom Use 0% Tactical HUD 1 Map Filters NONE Filters NONE Steam 1 RUN: bc8998ba-ebb5-41b5-b217-8500ccb57347